[Event "Late-Titled-Tuesday-Blitz-January-23-2024"]
[Site "Chess.com"]
[Date "2024.01.23"]
[Round "5"]
[White "Fandorine"]
[Black "Korchmar_Vasiliy"]
[Result "1-0"]
[WhiteElo "2976"]
[BlackElo "2737"]
[TimeControl "180+1"]
[EndTime "14:53:29 PST"]
[Termination "Fandorine won by resignation"]

1. d4 {[%clk 0:03:00.9]} 1... d5 {[%clk 0:03:00.2]} 2. Nf3 {[%clk 0:02:58.8]}
2... Nf6 {[%clk 0:02:59.8]} 3. c4 {[%clk 0:02:59.5]} 3... c6 {[%clk 0:03:00.2]}
4. Nc3 {[%clk 0:02:59.8]} 4... a6 {[%clk 0:03:00.1]} 5. g3 {[%clk 0:02:59.4]}
5... dxc4 {[%clk 0:02:58]} 6. e4 {[%clk 0:02:37.9]} 6... Bg4 {[%clk 0:02:48.4]}
7. e5 {[%clk 0:02:33.7]} 7... Nd5 {[%clk 0:02:44.2]} 8. Bxc4 {[%clk 0:02:26.7]}
8... e6 {[%clk 0:02:41.8]} 9. h3 {[%clk 0:02:22.5]} 9... Bh5 {[%clk 0:02:40.3]}
10. a3 {[%clk 0:02:12.5]} 10... Be7 {[%clk 0:02:38.4]} 11. O-O {[%clk
0:02:09.9]} 11... O-O {[%clk 0:02:38.1]} 12. Qe2 {[%clk 0:02:04]} 12... Nd7
{[%clk 0:02:37.1]} 13. Bd3 {[%clk 0:02:02.9]} 13... Kh8 {[%clk 0:02:28.8]} 14.
Rd1 {[%clk 0:01:56.7]} 14... f6 {[%clk 0:02:23]} 15. g4 {[%clk 0:01:48.4]} 15...
Bg6 {[%clk 0:02:00.5]} 16. Bxg6 {[%clk 0:01:47.8]} 16... hxg6 {[%clk 0:02:01.4]}
17. exf6 {[%clk 0:01:48.3]} 17... Bxf6 {[%clk 0:01:48.5]} 18. Ne4 {[%clk
0:01:41.1]} 18... e5 {[%clk 0:01:18.4]} 19. g5 {[%clk 0:01:15.2]} 19... Be7
{[%clk 0:01:15.9]} 20. dxe5 {[%clk 0:01:15.9]} 20... Nc5 {[%clk 0:01:06.7]} 21.
Ng3 {[%clk 0:01:04.5]} 21... Nb3 {[%clk 0:00:54.2]} 22. Nh4 {[%clk 0:00:50.6]}
22... Nxa1 {[%clk 0:00:52.5]} 23. Nxg6+ {[%clk 0:00:49.5]} 23... Kg8 {[%clk
0:00:53.2]} 24. e6 {[%clk 0:00:32.7]} 24... Nb3 {[%clk 0:00:44.5]} 25. Qh5
{[%clk 0:00:30.9]} 1-0

[Event "Late-Titled-Tuesday-Blitz-January-23-2024"]
[Site "Chess.com"]
[Date "2024.01.23"]
[Round "5"]
[White "Sargsyan_Shant"]
[Black "dozer80"]
[Result "1-0"]
[WhiteElo "2917"]
[BlackElo "2712"]
[TimeControl "180+1"]
[EndTime "14:53:41 PST"]
[Termination "Sargsyan_Shant won by resignation"]

1. c4 {[%clk 0:02:59.9]} 1... e5 {[%clk 0:02:59.2]} 2. g3 {[%clk 0:02:58.3]}
2... c6 {[%clk 0:02:58]} 3. d4 {[%clk 0:02:56.5]} 3... exd4 {[%clk 0:02:56.6]}
4. Qxd4 {[%clk 0:02:56.4]} 4... d5 {[%clk 0:02:56.3]} 5. Bg2 {[%clk 0:02:53]}
5... Nf6 {[%clk 0:02:55.9]} 6. cxd5 {[%clk 0:02:53.2]} 6... cxd5 {[%clk
0:02:55.1]} 7. Nf3 {[%clk 0:02:52.6]} 7... Nc6 {[%clk 0:02:54.9]} 8. Qa4 {[%clk
0:02:53]} 8... Be7 {[%clk 0:02:47.7]} 9. O-O {[%clk 0:02:53.3]} 9... O-O {[%clk
0:02:47.8]} 10. Rd1 {[%clk 0:02:53.5]} 10... Be6 {[%clk 0:02:45.4]} 11. Nc3
{[%clk 0:02:53.7]} 11... Qb6 {[%clk 0:02:43]} 12. Qb5 {[%clk 0:02:50.2]} 12...
Bc5 {[%clk 0:01:58.6]} 13. Qxb6 {[%clk 0:02:50]} 13... axb6 {[%clk 0:01:59]} 14.
Bg5 {[%clk 0:02:34.5]} 14... Ne4 {[%clk 0:01:52.6]} 15. Rf1 {[%clk 0:01:54.4]}
15... Nxc3 {[%clk 0:01:46.3]} 16. bxc3 {[%clk 0:01:54.9]} 16... Ra3 {[%clk
0:01:46.8]} 17. Rfc1 {[%clk 0:01:47.7]} 17... Rfa8 {[%clk 0:01:45]} 18. Rc2
{[%clk 0:01:48.2]} 18... Bf5 {[%clk 0:01:41.9]} 19. Rcc1 {[%clk 0:01:35.7]}
19... Rxa2 {[%clk 0:01:40.6]} 20. Rxa2 {[%clk 0:01:36.6]} 20... Rxa2 {[%clk
0:01:40.5]} 21. e3 {[%clk 0:01:37.2]} 21... h6 {[%clk 0:01:24.6]} 22. Bf4 {[%clk
0:01:37.6]} 22... Be4 {[%clk 0:00:54.9]} 23. h4 {[%clk 0:01:36.9]} 23... Ba3
{[%clk 0:00:41.7]} 24. Rd1 {[%clk 0:01:37.1]} 24... Rc2 {[%clk 0:00:40.1]} 25.
Nd4 {[%clk 0:01:25]} 25... Nxd4 {[%clk 0:00:37.4]} 26. Rxd4 {[%clk 0:01:25.9]}
26... Bc5 {[%clk 0:00:33.2]} 27. Bxe4 {[%clk 0:01:12.8]} 27... Rc1+ {[%clk
0:00:32.6]} 28. Kg2 {[%clk 0:01:13.3]} 28... Bxd4 {[%clk 0:00:32.7]} 29. exd4
{[%clk 0:01:14.2]} 29... Rxc3 {[%clk 0:00:28.3]} 30. Bxd5 {[%clk 0:01:14.9]}
30... Rd3 {[%clk 0:00:28.6]} 31. Be3 {[%clk 0:01:14.6]} 31... b5 {[%clk
0:00:28.2]} 32. Kf3 {[%clk 0:01:12.6]} 32... b4 {[%clk 0:00:28]} 33. Ke2 {[%clk
0:01:13.1]} 33... Rc3 {[%clk 0:00:22.3]} 34. Bd2 {[%clk 0:01:13.3]} 34... Rc7
{[%clk 0:00:12.9]} 35. Bb3 {[%clk 0:01:13.4]} 1-0

[Event "Late-Titled-Tuesday-Blitz-January-23-2024"]
[Site "Chess.com"]
[Date "2024.01.23"]
[Round "5"]
[White "sergeikim"]
[Black "mjelcic"]
[Result "1-0"]
[WhiteElo "2423"]
[BlackElo "2215"]
[TimeControl "180+1"]
[EndTime "14:53:44 PST"]
[Termination "sergeikim won by checkmate"]

1. d4 {[%clk 0:02:55.5]} 1... d5 {[%clk 0:02:56.8]} 2. c4 {[%clk 0:02:55.6]}
2... dxc4 {[%clk 0:02:57.2]} 3. e3 {[%clk 0:02:54.6]} 3... e6 {[%clk 0:02:57.2]}
4. Bxc4 {[%clk 0:02:54.6]} 4... c5 {[%clk 0:02:56.5]} 5. Nf3 {[%clk 0:02:54.7]}
5... Nf6 {[%clk 0:02:56.9]} 6. O-O {[%clk 0:02:54.6]} 6... a6 {[%clk 0:02:56.4]}
7. Qe2 {[%clk 0:02:53.9]} 7... b5 {[%clk 0:02:55.9]} 8. Bb3 {[%clk 0:02:53.4]}
8... Bb7 {[%clk 0:02:51.3]} 9. Rd1 {[%clk 0:02:52.3]} 9... Nbd7 {[%clk
0:02:49.9]} 10. Nc3 {[%clk 0:02:50.8]} 10... Bd6 {[%clk 0:02:30.4]} 11. e4
{[%clk 0:02:37.6]} 11... cxd4 {[%clk 0:02:27]} 12. Nxd4 {[%clk 0:02:37.2]} 12...
O-O {[%clk 0:02:11.7]} 13. Nxe6 {[%clk 0:02:31.2]} 13... Bxh2+ {[%clk
0:02:08.2]} 14. Kxh2 {[%clk 0:02:30.3]} 14... fxe6 {[%clk 0:02:08.3]} 15. e5
{[%clk 0:02:17.4]} 15... Nd5 {[%clk 0:02:01.5]} 16. Nxd5 {[%clk 0:02:09.5]}
16... Bxd5 {[%clk 0:01:49.4]} 17. Bxd5 {[%clk 0:01:42.3]} 17... exd5 {[%clk
0:01:50.3]} 18. e6 {[%clk 0:01:42.7]} 18... Qh4+ {[%clk 0:01:42.4]} 19. Kg1
{[%clk 0:01:42.1]} 19... Nf6 {[%clk 0:01:37.1]} 20. f3 {[%clk 0:01:28.4]} 20...
Rfe8 {[%clk 0:01:33.5]} 21. Qe5 {[%clk 0:01:24.1]} 21... Rac8 {[%clk 0:01:17.2]}
22. Bg5 {[%clk 0:01:23.6]} 22... Qc4 {[%clk 0:00:50.2]} 23. Rac1 {[%clk
0:01:16.3]} 23... Qxa2 {[%clk 0:00:37.8]} 24. Rxc8 {[%clk 0:01:15.5]} 24... Rxc8
{[%clk 0:00:36.7]} 25. Bxf6 {[%clk 0:01:16.1]} 25... gxf6 {[%clk 0:00:36.2]} 26.
Qxf6 {[%clk 0:01:15.8]} 26... Qb3 {[%clk 0:00:30.8]} 27. Re1 {[%clk 0:01:05.2]}
27... Rf8 {[%clk 0:00:14.8]} 28. Qg5+ {[%clk 0:01:02.8]} 28... Kh8 {[%clk
0:00:14.7]} 29. e7 {[%clk 0:01:00.9]} 29... Re8 {[%clk 0:00:14.7]} 30. Qf6+
{[%clk 0:00:57.7]} 30... Kg8 {[%clk 0:00:13.9]} 31. Re5 {[%clk 0:00:56.9]} 31...
Qd1+ {[%clk 0:00:13.1]} 32. Kh2 {[%clk 0:00:56.7]} 32... Rxe7 {[%clk 0:00:10.9]}
33. Rxe7 {[%clk 0:00:55.7]} 33... Qe1 {[%clk 0:00:08.9]} 34. Qg7# {[%clk
0:00:54.9]} 1-0

[Event "Late-Titled-Tuesday-Blitz-January-23-2024"]
[Site "Chess.com"]
[Date "2024.01.23"]
[Round "5"]
[White "Kazan28"]
[Black "Boninknights"]
[Result "1/2-1/2"]
[WhiteElo "2599"]
[BlackElo "2379"]
[TimeControl "180+1"]
[EndTime "14:53:46 PST"]
[Termination "Game drawn by repetition"]

1. d4 {[%clk 0:03:00.9]} 1... Nf6 {[%clk 0:02:59]} 2. Nf3 {[%clk 0:03:01.8]}
2... d6 {[%clk 0:02:58]} 3. Nc3 {[%clk 0:02:56.4]} 3... Bf5 {[%clk 0:02:55.7]}
4. Nh4 {[%clk 0:02:53.8]} 4... Bd7 {[%clk 0:02:54.3]} 5. Nf3 {[%clk 0:02:53.5]}
5... Nc6 {[%clk 0:02:52.4]} 6. e4 {[%clk 0:02:53.3]} 6... e5 {[%clk 0:02:51.3]}
7. Bb5 {[%clk 0:02:47.9]} 7... exd4 {[%clk 0:02:45]} 8. Nxd4 {[%clk 0:02:46.3]}
8... Be7 {[%clk 0:02:43.3]} 9. O-O {[%clk 0:02:46]} 9... O-O {[%clk 0:02:41.7]}
10. Bxc6 {[%clk 0:02:46.3]} 10... bxc6 {[%clk 0:02:38.5]} 11. Qf3 {[%clk
0:02:46.4]} 11... c5 {[%clk 0:02:31.8]} 12. Nf5 {[%clk 0:02:45.1]} 12... Bxf5
{[%clk 0:02:28.1]} 13. Qxf5 {[%clk 0:02:46]} 13... Qc8 {[%clk 0:02:25.7]} 14.
Qxc8 {[%clk 0:02:43]} 14... Rfxc8 {[%clk 0:02:23.9]} 15. b3 {[%clk 0:02:41.3]}
15... Nd7 {[%clk 0:02:18.7]} 16. Nd5 {[%clk 0:02:39.7]} 16... Bd8 {[%clk
0:02:15.2]} 17. Bb2 {[%clk 0:02:38]} 17... c6 {[%clk 0:02:12.5]} 18. Ne3 {[%clk
0:02:35.9]} 18... Bf6 {[%clk 0:02:11.3]} 19. Bxf6 {[%clk 0:02:30.6]} 19... Nxf6
{[%clk 0:02:10.3]} 20. f3 {[%clk 0:02:26.9]} 20... Re8 {[%clk 0:02:06.2]} 21.
Rfe1 {[%clk 0:02:23.8]} 21... d5 {[%clk 0:02:04.5]} 22. exd5 {[%clk 0:02:21.4]}
22... cxd5 {[%clk 0:02:03.8]} 23. Kf2 {[%clk 0:02:17.4]} 23... a5 {[%clk
0:01:55.9]} 24. Nf5 {[%clk 0:02:13.4]} 24... g6 {[%clk 0:01:48]} 25. Ne3 {[%clk
0:02:04.8]} 25... a4 {[%clk 0:01:45.8]} 26. Rad1 {[%clk 0:02:05.2]} 26... axb3
{[%clk 0:01:36.9]} 27. axb3 {[%clk 0:02:06.1]} 27... Ra2 {[%clk 0:01:31.5]} 28.
Nxd5 {[%clk 0:01:52.7]} 28... Rxc2+ {[%clk 0:01:26.8]} 29. Kg3 {[%clk 0:01:42]}
29... Nh5+ {[%clk 0:01:25]} 30. Kh3 {[%clk 0:01:41]} 30... Rxe1 {[%clk
0:01:21.7]} 31. Rxe1 {[%clk 0:01:41.9]} 31... Rd2 {[%clk 0:01:20.9]} 32. g4
{[%clk 0:01:25.3]} 32... Rxd5 {[%clk 0:01:17.1]} 33. gxh5 {[%clk 0:01:25.2]}
33... Rxh5+ {[%clk 0:01:16.4]} 34. Kg3 {[%clk 0:01:25.8]} 34... Rd5 {[%clk
0:01:15.2]} 35. Re4 {[%clk 0:01:23.6]} 35... Rd3 {[%clk 0:01:12.4]} 36. b4
{[%clk 0:01:23.3]} 36... cxb4 {[%clk 0:01:10.8]} 37. Rxb4 {[%clk 0:01:24.2]}
37... h5 {[%clk 0:01:09.4]} 38. h4 {[%clk 0:01:23.7]} 38... Kg7 {[%clk
0:01:08.1]} 39. Rb7 {[%clk 0:01:23.3]} 39... Kf6 {[%clk 0:01:06.3]} 40. Ra7
{[%clk 0:01:23.5]} 40... Ke6 {[%clk 0:01:04.8]} 41. Ra6+ {[%clk 0:01:18.5]}
41... Ke5 {[%clk 0:01:03.1]} 42. Ra7 {[%clk 0:01:16.5]} 42... f6 {[%clk
0:01:02.1]} 43. Rg7 {[%clk 0:01:00.8]} 43... Kf5 {[%clk 0:00:58.9]} 44. Rf7
{[%clk 0:01:01.2]} 44... Ke6 {[%clk 0:00:56.9]} 45. Rg7 {[%clk 0:01:00.9]} 45...
Kf5 {[%clk 0:00:53.6]} 46. Rf7 {[%clk 0:01:01]} 46... Ra3 {[%clk 0:00:51.1]} 47.
Rf8 {[%clk 0:01:00.7]} 47... g5 {[%clk 0:00:43.5]} 48. hxg5 {[%clk 0:01:01.6]}
48... Kxg5 {[%clk 0:00:43.2]} 49. Rg8+ {[%clk 0:01:02]} 49... Kf5 {[%clk
0:00:43.2]} 50. Rh8 {[%clk 0:01:02.6]} 50... Kg5 {[%clk 0:00:42.1]} 51. Rg8+
{[%clk 0:01:02.7]} 51... Kf5 {[%clk 0:00:42.1]} 52. Rh8 {[%clk 0:01:02.9]} 52...
Kg5 {[%clk 0:00:42.2]} 53. Rg8+ {[%clk 0:01:02.9]} 1/2-1/2

[Event "Late-Titled-Tuesday-Blitz-January-23-2024"]
[Site "Chess.com"]
[Date "2024.01.23"]
[Round "5"]
[White "iturrizaga"]
[Black "MightyGMpretender"]
[Result "1-0"]
[WhiteElo "3019"]
[BlackElo "2759"]
[TimeControl "180+1"]
[EndTime "14:53:47 PST"]
[Termination "iturrizaga won by resignation"]

1. c4 {[%clk 0:03:00.9]} 1... Nf6 {[%clk 0:02:59.8]} 2. Nc3 {[%clk 0:03:00.8]}
2... c5 {[%clk 0:03:00.5]} 3. Nf3 {[%clk 0:03:00.9]} 3... d5 {[%clk 0:03:00.8]}
4. cxd5 {[%clk 0:03:01.3]} 4... Nxd5 {[%clk 0:03:01.6]} 5. e3 {[%clk 0:03:01.8]}
5... e6 {[%clk 0:03:01.5]} 6. Bc4 {[%clk 0:03:01.9]} 6... Nc6 {[%clk 0:02:58]}
7. O-O {[%clk 0:03:02]} 7... Be7 {[%clk 0:02:58]} 8. Qe2 {[%clk 0:03:02.3]} 8...
O-O {[%clk 0:02:54.2]} 9. Rd1 {[%clk 0:03:02.5]} 9... b6 {[%clk 0:02:47.3]} 10.
d4 {[%clk 0:02:46]} 10... cxd4 {[%clk 0:02:46.1]} 11. Nxd5 {[%clk 0:02:23.4]}
11... exd5 {[%clk 0:02:41.9]} 12. Bb5 {[%clk 0:02:23.7]} 12... Bb7 {[%clk
0:02:38.3]} 13. Bxc6 {[%clk 0:02:18]} 13... Bxc6 {[%clk 0:02:38.5]} 14. Nxd4
{[%clk 0:02:18.5]} 14... Bb7 {[%clk 0:02:28.7]} 15. b3 {[%clk 0:02:15]} 15...
Rc8 {[%clk 0:02:28.1]} 16. Bb2 {[%clk 0:02:15.2]} 16... Bf6 {[%clk 0:02:28.6]}
17. Nf5 {[%clk 0:02:14.3]} 17... Rc6 {[%clk 0:02:01.2]} 18. Rac1 {[%clk
0:02:08.2]} 18... Bxb2 {[%clk 0:01:54.3]} 19. Qxb2 {[%clk 0:02:07.6]} 19... Rg6
{[%clk 0:01:42.6]} 20. Qe5 {[%clk 0:01:52.4]} 20... Re8 {[%clk 0:01:41.4]} 21.
Qc7 {[%clk 0:01:51.2]} 21... Qg5 {[%clk 0:01:41.5]} 22. Ng3 {[%clk 0:01:47.7]}
22... Ba8 {[%clk 0:01:25.5]} 23. Rd4 {[%clk 0:01:19]} 23... h6 {[%clk
0:01:02.1]} 24. Qxa7 {[%clk 0:01:12.8]} 24... h5 {[%clk 0:00:40]} 25. h4 {[%clk
0:01:01.5]} 25... Qe5 {[%clk 0:00:40.5]} 26. Qc7 {[%clk 0:00:34.8]} 26... Qe6
{[%clk 0:00:40.9]} 27. Nxh5 {[%clk 0:00:30.5]} 27... Rg4 {[%clk 0:00:41]} 28.
Nf4 {[%clk 0:00:22.2]} 28... Qh6 {[%clk 0:00:31.5]} 29. Qd7 {[%clk 0:00:21.4]}
1-0

[Event "Late-Titled-Tuesday-Blitz-January-23-2024"]
[Site "Chess.com"]
[Date "2024.01.23"]
[Round "5"]
[White "dolynachess"]
[Black "TheMagician"]
[Result "0-1"]
[WhiteElo "2494"]
[BlackElo "2139"]
[TimeControl "180+1"]
[EndTime "14:53:47 PST"]
[Termination "TheMagician won by resignation"]

1. d4 {[%clk 0:02:50.4]} 1... Nf6 {[%clk 0:02:59.9]} 2. c4 {[%clk 0:02:47.8]}
2... e6 {[%clk 0:02:58.9]} 3. g3 {[%clk 0:02:47.6]} 3... Bb4+ {[%clk 0:02:57.2]}
4. Nd2 {[%clk 0:02:46.8]} 4... O-O {[%clk 0:02:54.2]} 5. Bg2 {[%clk 0:02:46.3]}
5... d5 {[%clk 0:02:47.6]} 6. Nf3 {[%clk 0:02:45.8]} 6... dxc4 {[%clk 0:02:46]}
7. Qc2 {[%clk 0:02:44.7]} 7... c5 {[%clk 0:02:30.8]} 8. dxc5 {[%clk 0:02:37.1]}
8... c3 {[%clk 0:02:25.8]} 9. bxc3 {[%clk 0:02:38]} 9... Bxc5 {[%clk 0:02:25.8]}
10. O-O {[%clk 0:02:33.5]} 10... Bd7 {[%clk 0:02:21.7]} 11. Ne5 {[%clk
0:02:25.3]} 11... Qc7 {[%clk 0:02:20.4]} 12. Nxd7 {[%clk 0:02:09.2]} 12... Nbxd7
{[%clk 0:02:20.4]} 13. Nb3 {[%clk 0:02:06.6]} 13... Rac8 {[%clk 0:02:03.5]} 14.
Bf4 {[%clk 0:01:59.2]} 14... e5 {[%clk 0:02:02.4]} 15. Nxc5 {[%clk 0:01:39.3]}
15... Qxc5 {[%clk 0:01:42.1]} 16. Be3 {[%clk 0:01:35.6]} 16... Qc7 {[%clk
0:01:36.4]} 17. Rfc1 {[%clk 0:01:27]} 17... b6 {[%clk 0:01:34.9]} 18. a4 {[%clk
0:01:26.2]} 18... h6 {[%clk 0:01:23.2]} 19. a5 {[%clk 0:01:25.5]} 19... Ng4
{[%clk 0:01:21.6]} 20. Bd2 {[%clk 0:01:08.5]} 20... Qc5 {[%clk 0:01:11.5]} 21.
Be1 {[%clk 0:00:56.4]} 21... Ngf6 {[%clk 0:01:01.6]} 22. axb6 {[%clk 0:00:53.7]}
22... axb6 {[%clk 0:01:00.9]} 23. Qf5 {[%clk 0:00:44.2]} 23... Rc7 {[%clk
0:00:54.4]} 24. c4 {[%clk 0:00:35.9]} 24... Rfc8 {[%clk 0:00:48.3]} 25. h3
{[%clk 0:00:17.9]} 25... e4 {[%clk 0:00:34.7]} 26. Bd2 {[%clk 0:00:16.6]} 26...
Qxf5 {[%clk 0:00:32.5]} 0-1

[Event "Late-Titled-Tuesday-Blitz-January-23-2024"]
[Site "Chess.com"]
[Date "2024.01.23"]
[Round "5"]
[White "yaguigor"]
[Black "almaguerjm"]
[Result "1-0"]
[WhiteElo "2638"]
[BlackElo "2473"]
[TimeControl "180+1"]
[EndTime "14:53:48 PST"]
[Termination "yaguigor won by resignation"]

1. d4 {[%clk 0:03:00.9]} 1... d5 {[%clk 0:02:51.9]} 2. c4 {[%clk 0:02:58.3]}
2... e6 {[%clk 0:02:50.9]} 3. Nc3 {[%clk 0:02:56.2]} 3... Nf6 {[%clk 0:02:48.9]}
4. Nf3 {[%clk 0:02:49.9]} 4... Bb4 {[%clk 0:02:46.4]} 5. Bg5 {[%clk 0:02:28]}
5... c5 {[%clk 0:02:44.9]} 6. cxd5 {[%clk 0:02:22.3]} 6... exd5 {[%clk
0:02:43.4]} 7. e3 {[%clk 0:02:18.1]} 7... Qa5 {[%clk 0:02:43]} 8. Bxf6 {[%clk
0:02:13.2]} 8... Bxc3+ {[%clk 0:02:42.1]} 9. bxc3 {[%clk 0:02:12.4]} 9... Qxc3+
{[%clk 0:02:43]} 10. Nd2 {[%clk 0:02:03.6]} 10... gxf6 {[%clk 0:02:43.1]} 11.
Rc1 {[%clk 0:02:03.1]} 11... Qa3 {[%clk 0:02:43.2]} 12. Rxc5 {[%clk 0:02:02.4]}
12... Nc6 {[%clk 0:02:42.1]} 13. Qb3 {[%clk 0:01:58.7]} 13... Qxb3 {[%clk
0:02:33]} 14. Nxb3 {[%clk 0:01:56.8]} 14... Be6 {[%clk 0:02:28.8]} 15. Bb5
{[%clk 0:01:54.6]} 15... Rg8 {[%clk 0:02:27.5]} 16. Na5 {[%clk 0:01:41.1]} 16...
O-O-O {[%clk 0:02:19.5]} 17. Bxc6 {[%clk 0:01:34.9]} 17... b6 {[%clk 0:02:11.4]}
18. Rc3 {[%clk 0:01:26.5]} 18... bxa5 {[%clk 0:02:11.2]} 19. Ke2 {[%clk
0:01:11]} 19... Kc7 {[%clk 0:01:58.9]} 20. Bxd5+ {[%clk 0:01:07.3]} 20... Kd6
{[%clk 0:01:59]} 21. Bxe6 {[%clk 0:01:06.5]} 21... fxe6 {[%clk 0:01:59.6]} 22.
g3 {[%clk 0:00:59.2]} 22... Rb8 {[%clk 0:01:49.7]} 23. Ra3 {[%clk 0:00:56.9]}
23... Rb5 {[%clk 0:01:46.8]} 24. Rc1 {[%clk 0:00:55.4]} 24... Rgb8 {[%clk
0:01:45.8]} 25. Kf3 {[%clk 0:00:53.6]} 25... h5 {[%clk 0:01:45.5]} 26. Rc2
{[%clk 0:00:51.4]} 26... h4 {[%clk 0:01:40.4]} 27. g4 {[%clk 0:00:49.2]} 27...
f5 {[%clk 0:01:40.9]} 28. h3 {[%clk 0:00:45.3]} 28... fxg4+ {[%clk 0:01:38.7]}
29. hxg4 {[%clk 0:00:45.4]} 29... Rg5 {[%clk 0:01:35.6]} 30. Rc5 {[%clk
0:00:44.1]} 30... Rf8+ {[%clk 0:01:34.6]} 31. Ke2 {[%clk 0:00:41.1]} 31... Rxg4
{[%clk 0:01:35]} 32. Raxa5 {[%clk 0:00:38.5]} 32... Rg2 {[%clk 0:01:29.9]} 33.
Ra6+ {[%clk 0:00:38.6]} 33... Ke7 {[%clk 0:01:29.1]} 34. Rxa7+ {[%clk
0:00:39.5]} 34... Kd6 {[%clk 0:01:28.6]} 35. Ra6+ {[%clk 0:00:38.5]} 35... Kd7
{[%clk 0:01:26.5]} 36. Rh5 {[%clk 0:00:30.7]} 36... Rfxf2+ {[%clk 0:01:25]} 37.
Kd3 {[%clk 0:00:31.3]} 37... Rd2+ {[%clk 0:01:21.2]} 38. Ke4 {[%clk 0:00:27]}
38... Rg4+ {[%clk 0:01:15]} 39. Ke5 {[%clk 0:00:25.8]} 39... Rdg2 {[%clk
0:00:53.6]} 40. Rh7+ {[%clk 0:00:24.1]} 1-0

[Event "Late-Titled-Tuesday-Blitz-January-23-2024"]
[Site "Chess.com"]
[Date "2024.01.23"]
[Round "5"]
[White "zverr1"]
[Black "ArtemDyachuk"]
[Result "0-1"]
[WhiteElo "2520"]
[BlackElo "2621"]
[TimeControl "180+1"]
[EndTime "14:53:52 PST"]
[Termination "ArtemDyachuk won on time"]

1. e4 {[%clk 0:02:56.8]} 1... c5 {[%clk 0:02:59.3]} 2. Nf3 {[%clk 0:02:56.1]}
2... d6 {[%clk 0:02:59.7]} 3. Nc3 {[%clk 0:02:55.1]} 3... a6 {[%clk 0:02:58.3]}
4. d4 {[%clk 0:02:48.6]} 4... cxd4 {[%clk 0:02:59]} 5. Nxd4 {[%clk 0:02:49.5]}
5... Nf6 {[%clk 0:02:59.5]} 6. h3 {[%clk 0:02:49.5]} 6... e5 {[%clk 0:02:49.5]}
7. Nde2 {[%clk 0:02:49.2]} 7... Be6 {[%clk 0:02:49.1]} 8. g4 {[%clk 0:02:48.3]}
8... d5 {[%clk 0:02:47.9]} 9. exd5 {[%clk 0:02:43.3]} 9... Nxd5 {[%clk 0:02:48]}
10. Bg2 {[%clk 0:02:40.9]} 10... Nxc3 {[%clk 0:02:39]} 11. Qxd8+ {[%clk
0:02:38.4]} 11... Kxd8 {[%clk 0:02:39.3]} 12. Nxc3 {[%clk 0:02:38.8]} 12... Nc6
{[%clk 0:02:39.7]} 13. Be3 {[%clk 0:02:34]} 13... Kc7 {[%clk 0:02:28.8]} 14.
Nd5+ {[%clk 0:02:32.7]} 14... Bxd5 {[%clk 0:02:27]} 15. Bxd5 {[%clk 0:02:33.6]}
15... f6 {[%clk 0:02:04.1]} 16. O-O-O {[%clk 0:02:22.2]} 16... Bd6 {[%clk
0:02:01.8]} 17. Be4 {[%clk 0:02:16.2]} 17... Rad8 {[%clk 0:02:00.8]} 18. Rd2
{[%clk 0:02:03.2]} 18... h5 {[%clk 0:01:36.9]} 19. g5 {[%clk 0:01:51.8]} 19...
Ne7 {[%clk 0:01:33.2]} 20. gxf6 {[%clk 0:01:37.4]} 20... gxf6 {[%clk 0:01:32.3]}
21. Rhd1 {[%clk 0:00:54.9]} 21... f5 {[%clk 0:01:29.6]} 22. Bxb7 {[%clk
0:00:54.8]} 22... f4 {[%clk 0:01:29.8]} 23. Bb6+ {[%clk 0:00:42.8]} 23... Kxb6
{[%clk 0:01:24]} 24. Rxd6+ {[%clk 0:00:42.6]} 24... Rxd6 {[%clk 0:01:24.9]} 25.
Rxd6+ {[%clk 0:00:42.6]} 25... Kxb7 {[%clk 0:01:25.4]} 26. Rd7+ {[%clk
0:00:42.7]} 26... Kc6 {[%clk 0:01:25.9]} 27. Rxe7 {[%clk 0:00:43.6]} 27... Kd5
{[%clk 0:01:26.8]} 28. Kd2 {[%clk 0:00:39.7]} 28... Ke4 {[%clk 0:01:22.1]} 29.
Ke2 {[%clk 0:00:27]} 29... f3+ {[%clk 0:01:21.6]} 30. Kd2 {[%clk 0:00:24.8]}
30... Rd8+ {[%clk 0:01:19.7]} 31. Kc3 {[%clk 0:00:23.5]} 31... Rd1 {[%clk
0:01:19.3]} 32. Re6 {[%clk 0:00:08.2]} 32... Rf1 {[%clk 0:01:18.7]} 33. Rxa6
{[%clk 0:00:07.1]} 33... Rxf2 {[%clk 0:01:19]} 34. a4 {[%clk 0:00:05.3]} 34...
Rg2 {[%clk 0:01:18.5]} 35. Rf6 {[%clk 0:00:03.6]} 35... f2 {[%clk 0:01:18.5]}
36. Kb4 {[%clk 0:00:03]} 36... Ke3 {[%clk 0:01:16.4]} 37. a5 {[%clk 0:00:02.3]}
37... Ke2 {[%clk 0:01:11.1]} 0-1

[Event "Late-Titled-Tuesday-Blitz-January-23-2024"]
[Site "Chess.com"]
[Date "2024.01.23"]
[Round "5"]
[White "ImportedItalianMaple"]
[Black "GoValya"]
[Result "1-0"]
[WhiteElo "2435"]
[BlackElo "2290"]
[TimeControl "180+1"]
[EndTime "14:53:56 PST"]
[Termination "ImportedItalianMaple won by resignation"]

1. e4 {[%clk 0:03:00.9]} 1... e6 {[%clk 0:02:56.7]} 2. d4 {[%clk 0:02:59]} 2...
d5 {[%clk 0:02:57]} 3. Nc3 {[%clk 0:02:58.6]} 3... Nf6 {[%clk 0:02:53.4]} 4. e5
{[%clk 0:02:57.6]} 4... Nfd7 {[%clk 0:02:53.7]} 5. f4 {[%clk 0:02:56.6]} 5... c5
{[%clk 0:02:52.7]} 6. Nf3 {[%clk 0:02:55.8]} 6... Nc6 {[%clk 0:02:52.1]} 7. Be3
{[%clk 0:02:53.8]} 7... a6 {[%clk 0:02:51.6]} 8. Qd2 {[%clk 0:02:50.6]} 8... Be7
{[%clk 0:02:50.6]} 9. O-O-O {[%clk 0:02:42.6]} 9... b5 {[%clk 0:02:50.1]} 10.
dxc5 {[%clk 0:02:28.4]} 10... Nxc5 {[%clk 0:02:43]} 11. Nd4 {[%clk 0:02:12.6]}
11... Nxd4 {[%clk 0:02:41.4]} 12. Bxd4 {[%clk 0:02:13.5]} 12... O-O {[%clk
0:02:40.5]} 13. g4 {[%clk 0:02:08.4]} 13... b4 {[%clk 0:02:40.1]} 14. Ne2 {[%clk
0:02:07]} 14... Ne4 {[%clk 0:02:34.7]} 15. Qe3 {[%clk 0:02:06.9]} 15... Bd7
{[%clk 0:02:20.1]} 16. Ng3 {[%clk 0:02:04.2]} 16... Rc8 {[%clk 0:02:10.7]} 17.
Kb1 {[%clk 0:01:41.2]} 17... Qc7 {[%clk 0:02:06.9]} 18. Bd3 {[%clk 0:01:32.3]}
18... Bb5 {[%clk 0:02:06.8]} 19. Nxe4 {[%clk 0:01:27.4]} 19... Bxd3 {[%clk
0:01:57.3]} 20. Qxd3 {[%clk 0:01:24.5]} 20... dxe4 {[%clk 0:01:57.6]} 21. Qxe4
{[%clk 0:01:24.8]} 21... a5 {[%clk 0:01:54]} 22. h4 {[%clk 0:01:17.1]} 22... a4
{[%clk 0:01:48.3]} 23. f5 {[%clk 0:01:11.8]} 23... Bc5 {[%clk 0:01:39.9]} 24. f6
{[%clk 0:00:54.7]} 24... g6 {[%clk 0:01:32.5]} 25. h5 {[%clk 0:00:51.9]} 25...
a3 {[%clk 0:01:13.6]} 26. hxg6 {[%clk 0:00:47.5]} 26... fxg6 {[%clk 0:01:13.5]}
27. Bxc5 {[%clk 0:00:38.8]} 27... Qxc5 {[%clk 0:01:06.5]} 28. Rxh7 {[%clk
0:00:38.2]} 28... Rxf6 {[%clk 0:00:14.3]} 29. exf6 {[%clk 0:00:34.2]} 29... Kxh7
{[%clk 0:00:14.1]} 30. Rh1+ {[%clk 0:00:34.4]} 1-0